bitfinex/quotes_ETHUSD_20250215
["timestamp","ask_amount","ask_price","bid_price","bid_amount"]
[1739580757595,0.9265218,2718.1,2718.0,8.27839477]
[1739580757922,0.9265218,2718.1,2718.0,6.7242764]
[1739580758103,0.9265218,2718.1,2718.0,3.0451064]
[1739580758286,0.9265218,2718.1,2718.0,0.0451064]
[1739580758642,0.9265218,2718.1,2717.9,3.0]
[1739580758785,0.9265218,2718.1,2718.0,0.04483462]
[1739580761088,0.1477218,2718.1,2718.0,9.10594129]
[1739580761403,0.1477218,2718.1,2718.0,11.48075966]
[1739580762123,0.1477218,2718.1,2718.0,9.92664129]
[1739580763322,0.1477218,2718.1,2718.0,11.48075966]
[1739580764749,0.1477218,2718.1,2718.0,9.92664129]
[1739580772618,0.1477218,2718.1,2718.0,9.10594129]
[1739580787420,1.8e-06,2718.1,2718.0,13.41385966]
[1739580787712,1.8e-06,2718.1,2718.0,13.96385966]
[1739580788613,1.8e-06,2718.4,2718.0,13.21005966]
[1739580788926,1.8e-06,2718.4,2718.3,9.05577837]
[1739580789234,1.8e-06,2718.4,2718.3,9.10052717]
[1739580790123,1.8e-06,2718.4,2718.3,8.27762717]
[1739580790325,0.7682018,2718.4,2718.3,8.27762717]
[1739580790983,0.7682018,2718.4,2718.3,6.7235088]
[1739580794115,0.7682018,2718.4,2718.3,3.0447488]
[1739580796197,0.7682018,2718.4,2718.3,0.0447488]
[1739580796495,0.7682018,2718.4,2718.0,3.0]
[1739580796692,0.7682,2718.2,2718.0,3.0]
[1739580798237,0.7682,2718.2,2718.1,3.67904]
[1739580798534,0.7682,2718.2,2718.0,3.0]
[1739580800027,0.7682,2718.2,2717.8,3.0]
[1739580800230,0.7682,2718.2,2717.8,6.67941]
[1739580800434,0.81419072,2718.2,2717.8,6.67941]
[1739580800639,0.7682,2718.2,2717.8,6.67941]
[1739580801135,0.7682,2718.2,2717.8,3.0]
[1739580801340,0.7682,2718.2,2717.8,6.67939]
[1739580801495,0.7682,2718.2,2718.0,3.0]
[1739580801699,0.7682,2718.2,2717.8,3.67939]
[1739580801930,0.7682,2718.2,2717.9,3.0]
[1739580803131,3.67898,2718.2,2717.9,3.0]
[1739580803435,0.7682,2718.1,2717.9,3.0]
[1739580804038,3.67908,2718.1,2717.9,3.0]
[1739580804238,3.67921,2718.0,2717.5,3.67982]
[1739580804457,0.7586,2717.9,2717.5,3.67982]
[1739580804657,0.7586,2717.9,2717.6,3.0]
[1739580805265,0.7586,2717.8,2717.6,3.0]
[1739580805835,0.04599485,2717.7,2717.4,3.0]
[1739580806073,0.80459806,2717.7,2717.4,3.0]
[1739580807278,0.7586,2717.6,2717.1,7.36066]
[1739580807486,3.6794,2717.9,2717.0,3.68046]
[1739580807487,3.72586916,2717.5,2717.0,3.68046]
[1739580807787,3.68026,2717.2,2716.7,3.68083]
[1739580807941,0.80460975,2717.1,2716.7,3.68083]
[1739580808141,0.7586,2717.1,2716.7,3.68083]
[1739580808435,0.7586,2717.0,2716.5,7.36223]
[1739580808871,0.7586,2717.0,2716.5,3.6811]
[1739580809061,3.68066,2716.9,2716.5,3.0]
[1739580809256,0.04600975,2717.0,2716.5,3.0]
[1739580809257,0.7586,2716.8,2716.5,3.0]
[1739580809439,0.7586,2716.8,2716.5,6.6812]
[1739580810046,0.7586,2716.8,2716.5,3.0]
[1739580810377,0.7586,2716.8,2716.6,0.04389392]
[1739580810779,0.7586,2716.7,2716.6,0.04389392]
[1739580811257,0.80461466,2716.7,2716.6,0.04389392]
[1739580812182,0.7586,2716.7,2716.6,0.04389392]
[1739580812871,0.7586,2716.7,2716.4,3.0]
[1739580813077,0.80461501,2716.7,2716.6,0.04389392]
[1739580813291,0.80461501,2716.7,2716.4,3.0]
[1739580813587,0.7586,2716.7,2716.3,3.0992]
[1739580813797,0.7586,2716.7,2716.4,0.04389392]
[1739580814005,0.7586,2716.6,2716.4,0.04389392]
[1739580814767,0.8046167,2716.6,2716.4,0.04389392]
[1739580815219,0.80461849,2716.5,2716.4,0.04389392]
[1739580815507,4.48581849,2716.5,2716.4,0.04389392]
[1739580815803,4.4398,2716.5,2716.4,0.04389392]
[1739580816271,4.48582286,2716.5,2716.4,0.04389392]
[1739580816464,4.43994,2716.4,2716.3,0.0992]
[1739580817002,4.48596488,2716.4,2716.3,0.0992]
[1739580817201,4.43994,2716.4,2716.3,0.0992]
[1739580818020,0.7586,2716.4,2716.3,0.14377635]
[1739580818518,4.43994,2716.4,2716.3,0.14377635]
[1739580820722,4.4859614,2716.4,2716.3,0.14377635]
[1739580821066,4.4859614,2716.4,2716.3,0.0992]
[1739580821471,4.43994,2716.4,2716.3,0.14377635]
[1739580821694,4.48596369,2716.4,2716.3,0.14377635]
[1739580822794,4.43994,2716.4,2716.3,0.14377635]
[1739580823618,0.7586,2716.4,2716.3,0.14377635]
[1739580825974,4.43994,2716.4,2716.3,0.14377635]
[1739580826793,0.7586,2716.4,2716.3,0.0992]
[1739580826966,0.7586,2716.4,2716.3,0.14467385]
[1739580828010,4.48596361,2716.4,2716.3,0.14467385]
[1739580828511,0.7586,2716.4,2716.3,0.14467385]
[1739580829412,4.43994,2716.4,2716.3,0.14467385]
[1739580829707,4.48596348,2716.4,2716.3,0.14467385]
[1739580830014,4.43994,2716.4,2716.3,0.14467385]
[1739580831520,4.48596358,2716.4,2716.3,0.14467385]
[1739580833315,4.43994,2716.4,2716.3,0.14467385]
[1739580833721,4.4859634,2716.4,2716.3,0.14467385]
[1739580834216,4.4859634,2716.4,2716.3,0.0992]
[1739580835417,5.0359634,2716.4,2716.3,0.0992]
[1739580836329,10.3559634,2716.4,2716.3,0.0992]
[1739580836492,10.30994,2716.4,2716.3,0.0992]
[1739580840625,0.7992,2716.1,2714.9,3.6833]
[1739580840800,4.48192,2715.4,2715.0,0.04445305]
[1739580841006,4.5279583,2715.4,2715.0,0.04445305]
[1739580841217,4.48192,2715.4,2715.0,3.04445305]
[1739580841607,3.6831,2715.1,2715.0,0.04445305]
[1739580841928,3.6831,2715.1,2714.7,0.7749]
[1739580842125,3.6831,2715.1,2715.0,0.0445104]
[1739580842427,4.46267,2715.2,2715.0,0.04465378]
[1739580842626,0.7797,2715.0,2714.3,3.68412]
[1739580842828,0.7797,2715.0,2714.4,3.72869378]
[1739580842829,8.14635,2715.0,2714.4,3.72869378]
[1739580843130,3.68351,2714.8,2714.4,0.04465378]
[1739580843345,0.82574925,2714.7,2714.4,0.04465378]
[1739580843539,0.7797,2714.7,2714.4,0.04465378]
[1739580843913,0.7797,2714.7,2714.3,3.68415]
[1739580844116,0.7797,2715.0,2714.5,0.04465378]
[1739580844332,0.7797,2715.0,2714.5,3.68389]
[1739580844523,0.7797,2715.0,2714.6,0.04465378]
[1739580844524,0.82575066,2715.0,2714.6,0.04465378]
[1739580844719,0.7797,2715.0,2714.6,0.04465378]
[1739580845539,0.7797,2715.3,2714.9,3.68328]
[1739580846130,0.7797,2715.3,2715.0,0.04465378]
[1739580846624,0.04604184,2715.2,2715.0,0.04465378]
[1739580847030,0.04604184,2715.2,2715.0,3.72787378]
[1739580847235,0.55,2715.5,2715.0,3.72787378]
[1739580847445,0.04604147,2715.4,2715.0,0.04465378]
[1739580847947,4.23256,2715.5,2715.0,0.04465378]
[1739580848249,0.55,2715.5,2715.0,0.04465378]
[1739580848545,4.23257,2715.5,2715.0,0.04465378]
[1739580848747,4.23257,2715.5,2715.0,3.72787378]
[1739580849242,0.04604146,2715.4,2715.0,0.04465378]
[1739580849739,0.805,2715.3,2715.0,0.04465378]
[1739580850112,0.805,2715.3,2714.9,3.68335]
[1739580850341,0.805,2715.3,2715.1,0.04465378]
[1739580850540,0.85104227,2715.3,2714.9,3.68327]
[1739580850718,0.8510423,2715.3,2715.2,0.04465378]
[1739580850923,0.8510423,2715.3,2714.9,3.68327]
[1739580851542,0.8510423,2715.3,2715.0,0.04502653]
[1739580851745,0.805,2715.3,2715.0,0.04502653]
[1739580851912,0.85104227,2715.3,2715.0,0.04502653]
[1739580852546,0.805,2715.3,2715.0,0.04502653]
[1739580852749,0.805,2715.7,2715.3,3.68274]
[1739580852933,0.805,2715.7,2715.4,3.68267]
[1739580853114,5.32,2715.8,2715.4,3.68267]
[1739580853311,5.32,2715.8,2715.5,0.04502653]
[1739580853611,5.61749153,2715.9,2715.5,4.48781]
[1739580853817,0.04603271,2715.8,2715.6,0.04502653]
[1739580854247,5.61749153,2715.9,2715.6,0.04502653]
[1739580855011,5.6635242,2715.9,2715.6,0.04502653]
[1739580855417,3.68217,2715.8,2715.6,0.04502653]
[1739580855713,0.04603342,2715.7,2715.3,4.48801]
[1739580856051,0.04603342,2715.7,2715.3,8.17073]
[1739580856350,0.04603342,2715.7,2715.3,4.48801]
[1739580856554,0.04603349,2715.8,2715.4,3.68268]
[1739580856850,0.04603345,2715.8,2715.4,3.68268]
[1739580857653,9.29962153,2715.9,2715.4,3.68268]
[1739580857947,9.29962153,2715.9,2715.3,4.48801]
[1739580858149,0.04603344,2715.8,2715.3,8.619541]
[1739580858350,0.04603344,2715.8,2715.3,4.936811]
[1739580858555,0.04603344,2715.8,2715.3,8.619571]
[1739580858849,0.04603344,2715.8,2715.3,4.936811]
[1739580859056,3.72825344,2715.8,2715.3,4.936811]
[1739580859356,0.04603344,2715.8,2715.3,8.619561]
[1739580859555,0.04603345,2715.8,2715.3,8.619561]
[1739580859723,3.72819345,2715.8,2715.3,4.936811]
[1739580860234,4.48737,2715.7,2715.1,4.48831]
[1739580860556,7.36527,2715.5,2714.9,3.68328]
[1739580860724,0.85103955,2715.4,2714.9,3.68328]
[1739580861050,4.53372955,2715.4,2714.9,3.68328]
[1739580861254,4.53372955,2715.4,2714.9,7.36657]
[1739580861752,4.53372955,2715.4,2714.8,0.8053]
[1739580861925,3.68286,2715.3,2714.8,4.48874]
[1739580862124,3.68286,2715.3,2714.8,0.8053]
[1739580862351,0.04604231,2715.2,2714.8,0.8053]
[1739580862733,3.72901231,2715.2,2714.8,0.8053]
[1739580863057,4.4877,2715.4,2714.8,4.48871]
[1739580864235,0.04604226,2715.3,2714.8,4.48871]
[1739580864439,0.04604226,2715.3,2714.8,0.8053]
[1739580864647,3.68305,2715.2,2714.8,0.8053]
[1739580864953,0.0460423,2715.1,2714.8,0.8053]
[1739580865333,3.6298823,2715.2,2714.8,0.8053]
[1739580865739,0.04522406,2715.1,2714.8,0.8053]
[1739580866361,0.04522406,2715.1,2714.6,3.68369]
[1739580866659,0.8204,2715.0,2714.5,0.7766]
[1739580866820,0.04522406,2714.9,2714.5,3.7766]
[1739580867022,0.04522406,2714.9,2714.5,7.46051]
[1739580867221,0.8204,2715.0,2714.5,3.7766]
[1739580867421,0.8204,2715.0,2714.6,3.68376]
[1739580870548,0.8204,2715.0,2714.7,0.04503132]
[1739580872165,4.50365,2715.0,2714.7,0.04503132]
[1739580872459,4.50365,2715.0,2714.5,4.46039]
[1739580872630,0.8204,2715.0,2714.6,3.72892732]
[1739580872827,3.68347,2714.9,2714.6,0.04522732]
[1739580873022,0.04522406,2714.9,2714.6,0.04522732]
[1739580873763,3.72866406,2714.9,2714.6,0.04522732]
[1739580874262,0.8204,2715.0,2714.7,0.043613]
[1739580874567,0.86562406,2715.0,2714.7,0.043613]
[1739580875067,4.54894406,2715.0,2714.4,3.68396]
[1739580875237,4.54894406,2715.0,2714.5,3.727523]
[1739580877336,3.68346,2714.9,2714.5,0.043613]
[1739580877663,3.68345,2714.9,2714.5,0.043613]
[1739580878126,3.68366,2714.7,2714.5,0.043613]
[1739580878323,0.04522406,2714.6,2714.5,0.043613]
[1739580878528,0.86562406,2714.6,2714.1,7.46104]
[1739580878771,4.54940406,2714.6,2714.5,0.0437421]
[1739580878972,3.68393,2714.5,2714.1,7.46104]
[1739580879179,0.04522406,2714.4,2714.1,7.46104]
[1739580879685,3.72928406,2714.4,2713.9,3.68471]
[1739580879828,3.72928406,2714.4,2713.9,4.44281]
[1739580880226,6.1404,2714.6,2713.9,0.7581]
[1739580880427,5.32,2714.6,2714.3,4.44228]
[1739580880625,5.32,2714.6,2714.3,0.7581]
[1739580881167,5.32,2714.6,2714.3,4.44228]
[1739580881364,5.32,2714.6,2714.4,3.68403]
[1739580881663,5.32,2714.6,2714.4,3.68396]
[1739580881852,5.32,2714.6,2714.4,4.49659]
[1739580882065,5.32,2714.6,2714.4,8.18056]
[1739580882233,5.32,2714.6,2714.4,4.49659]
[1739580882933,5.32,2714.6,2714.5,3.68391]
[1739580883139,5.32,2715.0,2714.7,0.7581]
[1739580883470,5.32,2715.0,2714.7,4.44165]
[1739580883963,5.32,2715.0,2714.8,3.68351]
[1739580885001,5.32,2715.0,2714.8,7.36702]
[1739580885555,5.32,2715.0,2714.9,3.72702124]
[1739580886586,5.32,2715.0,2714.9,0.04365124]
[1739580886774,3.68287,2715.3,2714.9,0.04365124]
[1739580887404,3.72809406,2715.3,2714.9,0.04365124]
[1739580887688,6.0803,2715.4,2714.9,3.72694124]
[1739580887890,6.0803,2715.4,2715.0,3.68316]
[1739580888185,6.0803,2715.4,2715.2,3.68296]
[1739580888186,5.32,2715.4,2715.2,3.68296]
[1739580888380,5.32,2715.4,2715.1,0.80175124]
[1739580888584,5.32,2715.4,2715.3,0.04356519]
[1739580888771,0.7603,2715.6,2715.2,3.68295]
[1739580888971,0.7603,2715.6,2715.3,0.04356519]
[1739580889366,6.0803,2715.8,2715.3,0.04356519]
[1739580889567,6.0803,2715.8,2715.3,3.72632519]
[1739580890096,6.0803,2715.8,2715.4,3.68263]
[1739580890097,6.8237065,2715.8,2715.4,3.68263]
[1739580890285,6.5943,2716.0,2715.6,3.68241]
[1739580890593,0.7603,2716.0,2715.7,0.04356519]
[1739580890753,0.04522406,2715.9,2715.7,0.04356519]
[1739580891190,0.04522406,2715.9,2715.5,4.44061]
[1739580891354,0.04522406,2715.9,2715.8,0.04356519]
[1739580891553,0.04522406,2715.9,2715.5,4.44061]
[1739580891754,0.04522406,2715.9,2715.8,0.04356519]
[1739580891988,0.04522406,2715.9,2715.5,4.44061]
[1739580892192,0.04522406,2715.9,2715.8,0.04356519]
[1739580892392,0.04522406,2715.9,2715.5,4.44061]
[1739580892591,0.04522406,2715.9,2715.8,0.04356519]
[1739580892793,0.04522406,2715.9,2715.3,3.68279]
[1739580892973,3.68202,2715.9,2715.8,0.04356519]
[1739580893170,3.68215,2715.8,2715.3,3.68279]
[1739580893374,3.68215,2715.8,2715.2,4.441]
[1739580893696,3.68206,2715.9,2715.2,4.44097]
[1739580893996,3.72728406,2715.9,2715.3,3.68275]
[1739580894399,8.86818092,2716.0,2715.4,3.68269]
[1739580894784,5.18618092,2716.0,2715.4,3.68269]
[1739580895165,5.18618092,2716.0,2715.5,4.45619]
[1739580895366,0.04522406,2715.9,2715.5,0.7737]
[1739580896281,3.72731406,2715.9,2715.5,0.7737]
[1739580897599,0.04522406,2715.9,2715.5,0.7737]
[1739580897784,3.68222,2715.8,2715.2,0.7737]
[1739580898190,3.68222,2715.8,2715.3,3.68275]
[1739580900718,0.04522406,2715.7,2715.4,0.04313977]
[1739580900917,3.68222,2715.8,2715.3,3.68282]
[1739580901124,0.04522406,2715.7,2715.4,0.04313977]
[1739580901617,5.36522406,2715.7,2715.4,0.04313977]
[1739580901822,5.32,2715.7,2715.4,0.04313977]
[1739580903112,5.36522406,2715.7,2715.4,0.04313977]
[1739580903323,5.32,2715.7,2715.4,0.04313977]
[1739580904312,5.32,2715.7,2715.5,3.68252]
[1739580904504,5.32,2715.7,2715.6,0.7737]
[1739580904819,5.32,2715.7,2715.6,0.81683977]
[1739580905223,5.32,2715.7,2715.6,0.04313977]
[1739580905727,5.32,2715.7,2715.6,3.72555977]
[1739580906101,5.32,2716.1,2715.7,0.7737]
[1739580906419,5.32,2716.1,2715.6,0.86132075]
[1739580906420,5.32,2716.1,2716.0,4.45558]
[1739580906925,5.32,2716.1,2716.0,4.49872934]
[1739580907709,5.32,2716.1,2716.0,0.81684934]
[1739580908335,5.32,2716.1,2716.0,4.49872934]
[1739580908616,5.32,2716.5,2716.2,3.6816]
[1739580908810,5.32,2716.6,2716.2,3.6816]
[1739580909007,5.32,2716.6,2716.3,0.04262851]
[1739580909424,0.7708,2716.7,2716.3,0.04262851]
[1739580909425,5.32,2716.7,2716.4,3.68132]
[1739580909624,5.32,2716.7,2716.4,3.72394851]
[1739580909810,5.32,2716.7,2716.4,3.72389851]
[1739580910035,5.32,2716.7,2716.4,4.17364836]
[1739580910415,5.32,2716.7,2716.4,7.85490836]
[1739580910744,5.32,2716.7,2716.4,4.17362836]
[1739580912559,5.32,2716.7,2716.4,0.04262851]
[1739580912738,5.36522406,2716.7,2716.4,0.04262851]
[1739580914060,5.32,2716.7,2716.4,0.04262851]
[1739580916448,5.32,2716.7,2716.4,3.72396851]
[1739580916635,5.32,2716.7,2716.4,7.40522851]
[1739580916834,5.32,2716.7,2716.5,0.8042]
[1739580917249,5.32,2716.7,2716.6,0.04240407]
[1739580919455,9.00068,2716.9,2716.6,0.04240407]
[1739580922488,9.00068,2716.9,2716.5,0.8042]
[1739580922673,5.32,2716.9,2716.7,0.04189775]
[1739580923073,5.32,2716.9,2716.5,4.4853]
[1739580923276,5.32,2716.9,2716.8,0.04189775]
[1739580923473,5.32,2717.0,2716.6,3.68097]
[1739580923644,5.32,2717.0,2716.8,0.04189775]
[1739580924045,5.32,2717.0,2716.6,3.68097]
[1739580924243,5.32,2717.0,2716.9,0.04187865]
[1739580924445,5.32,2717.0,2716.6,3.68097]
[1739580924645,5.32,2717.0,2716.6,4.497612]
[1739580924889,5.32,2717.0,2716.7,0.04187865]
[1739580925957,9.7544,2717.0,2716.7,0.04187865]
[1739580926193,9.7544,2717.0,2716.5,7.48539]
[1739580926388,6.0738,2717.0,2716.8,0.04184045]
[1739580926686,6.0738,2717.0,2716.6,7.36194]
[1739580926687,5.32,2717.0,2716.6,7.36194]
[1739580926853,5.32,2717.0,2716.9,0.04181658]
[1739580927058,5.32,2717.0,2716.7,3.68091]
[1739580927270,5.32,2717.0,2716.9,0.04181658]
[1739580927756,5.32,2717.0,2716.6,3.68096]
[1739580927957,5.32,2717.0,2716.9,0.04180704]
[1739580928192,5.32,2717.0,2716.6,3.68096]
[1739580928388,5.32,2717.1,2716.9,0.04180704]
[1739580928575,5.32,2717.1,2716.7,3.6809]
[1739580928777,0.7538,2717.2,2717.0,0.04180704]
[1739580928976,0.7538,2717.2,2716.8,3.68075]
[1739580929191,0.7538,2717.2,2717.1,0.04180704]
[1739580929369,0.7538,2717.2,2716.8,3.68075]
[1739580929567,0.7538,2717.2,2717.1,0.04182136]
[1739580929790,6.30265425,2717.3,2716.9,4.46077]
[1739580929995,6.30265425,2717.3,2717.1,0.04182136]
[1739580930159,6.30265425,2717.3,2716.9,4.46077]
[1739580930359,6.30265425,2717.3,2717.2,0.04182136]
[1739580930579,6.30265425,2717.3,2716.9,4.46077]
[1739580930889,6.30265425,2717.3,2717.2,0.04182136]
[1739580931696,6.30265425,2717.3,2716.9,4.46077]
[1739580932057,6.30265425,2717.3,2717.0,0.04182136]
[1739580934097,6.30265425,2717.3,2717.0,3.72227136]
[1739580935488,0.55,2717.1,2717.0,0.04182136]
[1739580935797,3.681,2716.7,2716.2,3.7802]
[1739580936106,0.04522406,2716.6,2716.3,3.68147]
[1739580936302,0.04522406,2716.7,2716.3,3.68147]
[1739580937776,0.27383651,2716.6,2716.3,3.68147]
[1739580938177,0.27383651,2716.6,2716.2,3.7802]
[1739580938415,0.27383651,2716.6,2716.3,3.68146]
[1739580938625,1.02763651,2716.6,2716.3,3.68146]
[1739580939502,0.27383651,2716.5,2716.3,3.68146]
[1739580940393,0.27383651,2716.5,2716.2,7.46181]
[1739580940562,0.27383651,2716.5,2716.0,0.814]
[1739580940767,0.27383651,2716.5,2715.9,3.0]
[1739580940768,3.72663406,2716.4,2715.9,3.68189]
[1739580940987,4.48126,2716.3,2715.6,4.49639]
[1739580941204,3.68177,2716.1,2715.6,4.49639]
[1739580941498,4.48126,2716.3,2715.7,3.68227]
[1739580941870,3.72691406,2716.2,2715.7,3.68227]
[1739580942801,0.27379159,2716.1,2715.7,3.68227]
[1739580943124,3.95554159,2716.1,2715.6,7.49634]
[1739580943396,3.95554159,2716.1,2715.7,3.68226]
[1739580943397,0.27379159,2716.1,2715.7,3.68226]
[1739580943595,0.27379159,2716.1,2715.7,4.131886]
[1739580944103,0.27379159,2716.1,2715.7,7.814106]
[1739580944301,0.27379159,2716.1,2715.7,4.131846]
[1739580944500,4.48126,2716.3,2715.7,4.131846]
[1739580944801,0.7997,2716.3,2715.9,3.68201]
[1739580945303,3.68079,2716.9,2716.3,3.6814]
[1739580945488,3.68079,2716.9,2716.3,7.36277]
[1739580946282,3.68079,2716.9,2716.4,3.68132]
[1739580946606,0.8239,2717.1,2716.6,3.68096]
[1739580946783,0.8239,2717.1,2716.4,0.03681303]
[1739580946784,5.32,2717.0,2716.7,4.843626]
[1739580947968,4.66284425,2717.3,2716.8,3.68079]
[1739580948313,0.98265425,2717.3,2716.8,3.68079]
[1739580948483,4.66278425,2717.3,2716.8,4.5332316]
[1739580949906,4.66278425,2717.3,2716.8,0.8524416]
[1739580950416,0.27369221,2717.2,2716.8,0.8524416]
[1739580951972,0.27369221,2717.1,2716.8,0.8524416]
[1739580952179,0.27369221,2717.1,2716.8,4.5331816]
[1739580952871,0.27369221,2717.1,2716.8,0.8524416]
[1739580953778,4.66278425,2717.3,2716.8,4.5332116]
[1739580953980,0.98265425,2717.3,2716.9,3.68065]
[1739580954879,0.04522406,2717.3,2716.9,3.68065]
[1739580955281,0.27369392,2717.2,2716.9,3.68065]
[1739580955818,0.27369392,2717.2,2716.8,0.8524416]
[1739580956117,0.27369392,2717.2,2716.8,4.5332116]
[1739580956330,0.27369392,2717.2,2716.8,0.8524416]
[1739580956622,0.27369392,2717.2,2716.9,3.68059]
[1739580956787,6.1439,2717.4,2716.9,3.68059]
[1739580957491,6.1439,2717.4,2716.9,7.36118]
[1739580958605,6.1439,2717.4,2716.9,3.68059]
[1739580958812,9.8239,2717.4,2716.9,3.68059]
[1739580958990,0.04522406,2717.3,2716.9,3.68059]
[1739580959732,9.8239,2717.4,2716.9,3.68059]
[1739580959938,0.27367723,2717.2,2716.9,3.68059]
[1739580961203,0.27367723,2717.2,2716.8,3.68077]
[1739580961540,13.504,2717.4,2716.8,3.68077]
[1739580961717,3.68013,2717.3,2716.8,3.68077]
[1739580961913,3.6803,2717.2,2716.7,4.47553]
[1739580962118,0.04522406,2717.1,2716.7,4.47546]
[1739580962799,0.7566,2717.0,2716.6,3.0]
[1739580963038,0.7566,2716.7,2716.1,3.68174]
[1739580963236,3.72631406,2716.6,2716.1,7.3634]
[1739580963545,6.0766,2716.7,2716.3,3.68138]
[1739580964143,5.32,2716.7,2716.6,3.68107]
[1739580967030,6.0766,2717.2,2716.7,3.68083]
[1739580967287,6.0766,2717.2,2716.8,3.68079]
[1739580967664,6.0766,2717.2,2716.8,7.36151]
[1739580967863,6.0766,2717.2,2716.8,3.68072]
[1739580969870,9.75689,2717.2,2716.6,3.68094]
[1739580970123,0.04522406,2717.1,2716.7,3.6809]
[1739580970408,9.75689,2717.2,2716.7,3.6809]
[1739580970782,3.72569406,2717.1,2716.6,3.68105]
[1739580970983,7.40617406,2717.1,2716.6,3.68105]
[1739580971382,0.7861,2717.0,2716.4,3.68125]
[1739580971594,3.68067,2716.9,2716.4,3.68125]
[1739580972876,9.00067,2716.9,2716.4,3.68125]
[1739580973211,9.00067,2716.9,2716.4,7.36251]
[1739580973624,0.27381928,2716.8,2716.4,7.36251]
[1739580974090,0.27381928,2716.8,2716.4,3.68125]
[1739580974740,0.31904334,2716.8,2716.4,3.68125]
[1739580975007,0.27381928,2716.8,2716.4,3.68125]
[1739580976423,0.27381928,2716.8,2716.4,7.36252]
[1739580976585,0.27381928,2716.8,2716.4,0.9412122]
[1739580976786,0.27381928,2716.8,2716.7,3.68093]
[1739580977197,5.32,2716.9,2716.6,4.44498]
[1739580977424,5.32,2716.9,2716.8,3.6808]
[1739580978912,0.04522406,2717.3,2716.8,3.6808]
[1739580979101,3.72538406,2717.3,2716.8,3.6808]
[1739580979719,0.04522406,2717.3,2716.9,3.68064]
[1739580980136,6.1061,2717.4,2716.9,3.68064]
[1739580980291,6.1061,2717.4,2717.0,4.44443]
[1739580980490,6.1061,2717.4,2717.0,3.68043]
[1739580980945,6.1061,2717.4,2717.1,3.68037]
[1739580981604,6.1061,2717.4,2716.9,3.68064]
[1739580981799,6.1061,2717.4,2716.9,3.68053]
[1739580982006,6.1061,2717.4,2717.1,3.68039]
[1739580982623,6.1061,2717.4,2717.1,7.36071]
[1739580982804,6.1061,2717.4,2717.0,0.44813343]
[1739580982805,6.1061,2717.4,2717.0,4.12862343]
[1739580983005,6.1061,2717.4,2717.0,0.44813343]
[1739580983205,6.1061,2717.4,2717.1,7.36064]
[1739580983400,6.1061,2717.4,2717.1,3.68032]
[1739580984198,5.32,2717.4,2717.3,3.68012]
[1739580984456,0.8095,2717.6,2717.3,3.68012]
[1739580985124,0.8095,2717.8,2717.3,3.68001]
[1739580985317,0.8095,2717.8,2717.4,4.047961]
[1739580985907,4.48894,2717.8,2717.4,4.047961]
[1739580986107,0.75155315,2717.7,2717.4,3.67996]
[1739580986332,0.79677721,2717.7,2717.4,3.67996]
[1739580986549,0.75155315,2717.7,2717.4,3.67996]
[1739580987629,0.75155315,2717.7,2717.2,3.68023]
[1739580987831,0.75155315,2717.7,2717.3,4.16940753]
[1739580988031,0.75155315,2717.7,2717.3,3.68012]
[1739580989348,0.79677721,2717.7,2717.3,3.68012]
[1739580989515,0.75155315,2717.7,2717.3,3.68012]
[1739580990247,0.79677721,2717.7,2717.3,3.68012]
[1739580990697,0.75155315,2717.7,2717.3,3.68012]
[1739580990897,0.79677721,2717.7,2717.1,0.7998]
[1739580991132,4.47642721,2717.7,2717.2,3.68025]
[1739580991753,3.67973,2717.6,2717.1,3.0]
[1739580991901,4.48937,2717.5,2716.8,6.6807]
[1739580992524,3.72528406,2717.4,2716.8,10.36141]
[1739580992735,3.68006,2717.4,2716.8,7.796821]
[1739580993155,3.68006,2717.4,2717.0,3.0]
[1739580994960,4.48937,2717.5,2717.0,3.0]
[1739580995515,4.48937,2717.5,2717.0,6.6805]
[1739580995829,4.48937,2717.5,2717.0,3.0]
[1739580995830,8.16933,2717.5,2717.0,3.0]
[1739580996877,3.72528406,2717.4,2717.0,3.0]
[1739580997364,3.68014,2717.3,2717.0,3.0]
[1739580998569,0.85472406,2717.2,2716.5,3.68111]
[1739580998719,0.7848,2716.9,2716.5,3.68111]
[1739580998919,0.83002406,2716.9,2716.6,3.0]
[1739580999347,0.83002406,2716.9,2716.4,7.48107]
[1739580999550,4.51075406,2716.9,2716.3,3.68138]
[1739580999763,3.68087,2716.8,2716.3,3.68138]
[1739581000057,0.04522406,2716.7,2716.3,3.68138]
[1739581000215,4.46553,2716.9,2716.3,7.36276]
[1739581000645,0.7848,2716.9,2716.3,3.68138]
[1739581000846,0.7848,2716.9,2716.5,3.68116]
[1739581001263,4.51076406,2716.9,2716.3,3.68138]
[1739581002060,0.7848,2716.9,2716.3,3.68138]
[1739581002356,0.7848,2716.9,2716.3,3.68141]
[1739581002562,4.46547,2716.9,2716.3,7.36277]
[1739581002758,0.04522406,2716.8,2716.3,7.36277]
[1739581003659,8.14621,2716.9,2716.3,7.36277]
[1739581003883,0.04522406,2716.8,2716.3,3.68136]
[1739581004231,3.72604406,2716.8,2716.3,3.68136]
[1739581005464,4.46547,2716.9,2716.3,3.68136]
[1739581005656,4.46547,2716.9,2716.4,3.68131]
[1739581006548,4.51069406,2716.9,2716.4,3.68131]
[1739581006931,8.19145406,2716.9,2716.4,3.68131]
[1739581007173,8.14623,2716.9,2716.3,4.65761903]
[1739581007347,8.14623,2716.9,2716.3,8.33900903]
[1739581007746,4.46547,2716.9,2716.3,8.33900903]
[1739581008334,8.14621,2716.9,2716.3,8.33900903]
[1739581008754,4.46547,2716.9,2716.4,3.68133]
[1739581009569,8.19143406,2716.9,2716.4,3.68133]
[1739581009737,8.14622,2716.9,2716.4,3.68133]
[1739581011538,4.46547,2716.9,2716.4,3.68133]
[1739581012170,0.7848,2716.9,2716.4,3.68133]
[1739581012473,0.7848,2716.9,2716.5,3.68108]
[1739581012775,0.7848,2716.9,2716.5,3.6812]